[Event "Titled Tuesday Blitz April 12 Early 2022"]
[White "Calin, Alexandru"]
[Black "Madaminov, Mukhiddin"]
[WhiteFideId "1222961"]
[BlackFideId "14210703"]
[WhiteElo "2020"]
[BlackElo "1916"]
[Result "0-1"]
[Round "07"]
[TimeControl "180+1"]
[Date "2022.04.13"]
[WhiteClock "0:00:05"]
[BlackClock "0:00:06"]

1. d4 {[%clk 0:02:08]}  Nf6 {[%clk 0:02:52]} 2. Bg5 {[%clk 0:02:07]}  e6 {[%clk 0:02:50]} 3. e4 {[%clk 0:02:07]}  h6 {[%clk 0:02:50]} 4. Bxf6 {[%clk 0:02:07]}  Qxf6 {[%clk 0:02:50]} 5. c3 {[%clk 0:02:08]}  c5 {[%clk 0:02:50]} 6. Nf3 {[%clk 0:02:08]}  Nc6 {[%clk 0:02:48]} 7. d5 {[%clk 0:01:58]}  Ne5 {[%clk 0:02:46]} 8. Nbd2 {[%clk 0:01:53]}  Bd6 {[%clk 0:02:31]} 9. Nxe5 {[%clk 0:01:44]}  Bxe5 {[%clk 0:02:32]} 10. Qf3 {[%clk 0:01:38]}  Qe7 {[%clk 0:02:24]} 11. Be2 {[%clk 0:01:30]}  O-O {[%clk 0:02:22]} 12. O-O {[%clk 0:01:22]}  Bc7 {[%clk 0:02:06]} 13. a4 {[%clk 0:01:18]}  b6 {[%clk 0:01:59]} 14. Nc4 {[%clk 0:01:13]}  Ba6 {[%clk 0:01:56]} 15. Rad1 {[%clk 0:01:10]}  exd5 {[%clk 0:01:54]} 16. exd5 {[%clk 0:01:05]}  Bxc4 {[%clk 0:01:54]} 17. Bxc4 {[%clk 0:01:05]}  Bxh2+ {[%clk 0:01:52]} 18. Kxh2 {[%clk 0:00:57]}  Qh4+ {[%clk 0:01:53]} 19. Qh3 {[%clk 0:00:57]}  Qxc4 {[%clk 0:01:53]} 20. Qxd7 {[%clk 0:00:56]}  Rfd8 {[%clk 0:01:52]} 21. Qf5 {[%clk 0:00:49]}  Rd6 {[%clk 0:01:46]} 22. Rfe1 {[%clk 0:00:44]}  Rad8 {[%clk 0:01:45]} 23. Re4 {[%clk 0:00:22]}  Qb3 {[%clk 0:01:41]} 24. Rde1 {[%clk 0:00:21]}  Kf8 {[%clk 0:01:34]} 25. Re7 {[%clk 0:00:16]}  Qxd5 {[%clk 0:01:31]} 26. Qxd5 {[%clk 0:00:16]}  Rxd5 {[%clk 0:01:31]} 27. Rxa7 {[%clk 0:00:17]}  Re8 {[%clk 0:01:23]} 28. Rxe8+ {[%clk 0:00:16]}  Kxe8 {[%clk 0:01:24]} 29. Rb7 {[%clk 0:00:17]}  Rd6 {[%clk 0:01:23]} 30. Kg3 {[%clk 0:00:17]}  Rf6 {[%clk 0:01:21]} 31. f3 {[%clk 0:00:17]}  g5 {[%clk 0:01:18]} 32. b4 {[%clk 0:00:17]}  cxb4 {[%clk 0:01:16]} 33. cxb4 {[%clk 0:00:18]}  Kf8 {[%clk 0:01:16]} 34. b5 {[%clk 0:00:16]}  Kg7 {[%clk 0:01:14]} 35. Rc7 {[%clk 0:00:16]}  Rf4 {[%clk 0:01:14]} 36. Rc6 {[%clk 0:00:16]}  Rxa4 {[%clk 0:01:14]} 37. Rxb6 {[%clk 0:00:16]}  Rb4 {[%clk 0:01:15]} 38. Rb8 {[%clk 0:00:16]}  Kg6 {[%clk 0:01:10]} 39. b6 {[%clk 0:00:17]}  h5 {[%clk 0:01:07]} 40. b7 {[%clk 0:00:17]}  h4+ {[%clk 0:01:07]} 41. Kh2 {[%clk 0:00:16]}  Kf5 {[%clk 0:01:07]} 42. Kh3 {[%clk 0:00:16]}  Rb3 {[%clk 0:01:05]} 43. Kh2 {[%clk 0:00:17]}  Rb1 {[%clk 0:01:02]} 44. g3 {[%clk 0:00:07]}  Rb2+ {[%clk 0:00:32]} 45. Kh3 {[%clk 0:00:07]}  hxg3 {[%clk 0:00:31]} 46. Kxg3 {[%clk 0:00:08]}  Rb3 {[%clk 0:00:30]} 47. Kf2 {[%clk 0:00:06]}  Kf4 {[%clk 0:00:29]} 48. Kg2 {[%clk 0:00:05]}  Rb2+ {[%clk 0:00:29]} 49. Kg1 {[%clk 0:00:05]}  Kxf3 {[%clk 0:00:29]} 50. Rg8 {[%clk 0:00:06]}  Rb1+ {[%clk 0:00:17]} 51. Kh2 {[%clk 0:00:06]}  Rb2+ {[%clk 0:00:17]} 52. Kh3 {[%clk 0:00:06]}  Rxb7 {[%clk 0:00:15]} 53. Rxg5 {[%clk 0:00:06]}  Kf4 {[%clk 0:00:15]} 54. Rg4+ {[%clk 0:00:06]}  Kf3 {[%clk 0:00:14]} 55. Rg3+ {[%clk 0:00:06]}  Ke4 {[%clk 0:00:15]} 56. Rg4+ {[%clk 0:00:06]}  Ke3 {[%clk 0:00:13]} 57. Rg3+ {[%clk 0:00:07]}  Kf4 {[%clk 0:00:12]} 58. Rg4+ {[%clk 0:00:07]}  Kf5 {[%clk 0:00:13]} 59. Rg3 {[%clk 0:00:07]}  f6 {[%clk 0:00:10]} 60. Rf3+ {[%clk 0:00:07]}  Ke5 {[%clk 0:00:10]} 61. Kg3 {[%clk 0:00:08]}  f5 {[%clk 0:00:10]} 62. Ra3 {[%clk 0:00:07]}  Kf6 {[%clk 0:00:06]} 63. Kf3 {[%clk 0:00:07]}  Kg5 {[%clk 0:00:06]} 64. Rc3 {[%clk 0:00:06]}  Rh7 {[%clk 0:00:07]} 65. Kg2 {[%clk 0:00:06]}  Kg4 {[%clk 0:00:07]} 66. Rc4+ {[%clk 0:00:06]}  f4 {[%clk 0:00:07]} 67. Rc3 {[%clk 0:00:05]}  Ra7 {[%clk 0:00:07]} 68. Rc2 {[%clk 0:00:05]}  Ra3 {[%clk 0:00:07]} 69. Kf2 {[%clk 0:00:06]}  Rh3 {[%clk 0:00:07]} 70. Kg2 {[%clk 0:00:05]}  f3+ {[%clk 0:00:07]} 71. Kg1 {[%clk 0:00:05]}  Kg3 {[%clk 0:00:07]} 72. Ra2 {[%clk 0:00:05]}  Rh7 {[%clk 0:00:06]} 0-1


[Site "https://www.chess.com"]

[Event "Titled Tuesday Blitz April 12 Early 2022"]
[White "Coto Mederos, Michel"]
[Black "Kavyev, Ruslan"]
[WhiteFideId "3508528"]
[BlackFideId "34110981"]
[WhiteElo "2538"]
[BlackElo "2702"]
[Result "1-0"]
[Round "07"]
[TimeControl "180+1"]
[Date "2022.04.13"]
[WhiteClock "0:00:21"]
[BlackClock "0:00:06"]

1. c4 {[%clk 0:03:00]}  Nf6 {[%clk 0:02:53]} 2. Nc3 {[%clk 0:03:00]}  g6 {[%clk 0:02:51]} 3. g3 {[%clk 0:03:00]}  Bg7 {[%clk 0:02:51]} 4. Bg2 {[%clk 0:03:00]}  O-O {[%clk 0:02:52]} 5. e3 {[%clk 0:03:00]}  c5 {[%clk 0:02:53]} 6. Nge2 {[%clk 0:02:59]}  Nc6 {[%clk 0:02:53]} 7. d4 {[%clk 0:02:46]}  cxd4 {[%clk 0:02:54]} 8. exd4 {[%clk 0:02:46]}  d6 {[%clk 0:02:55]} 9. d5 {[%clk 0:02:34]}  Ne5 {[%clk 0:02:52]} 10. b3 {[%clk 0:02:26]}  Bg4 {[%clk 0:02:49]} 11. O-O {[%clk 0:01:56]}  Bf3 {[%clk 0:02:43]} 12. Be3 {[%clk 0:01:50]}  Qd7 {[%clk 0:02:25]} 13. Qd2 {[%clk 0:01:35]}  a6 {[%clk 0:01:50]} 14. Nd4 {[%clk 0:01:30]}  Bxg2 {[%clk 0:01:49]} 15. Kxg2 {[%clk 0:01:31]}  Rfc8 {[%clk 0:01:26]} 16. h3 {[%clk 0:01:31]}  h5 {[%clk 0:01:10]} 17. f4 {[%clk 0:01:19]}  Nxc4 {[%clk 0:01:09]} 18. bxc4 {[%clk 0:01:20]}  Rxc4 {[%clk 0:01:10]} 19. f5 {[%clk 0:01:15]}  Rac8 {[%clk 0:01:08]} 20. Rac1 {[%clk 0:01:09]}  b5 {[%clk 0:00:54]} 21. fxg6 {[%clk 0:01:07]}  fxg6 {[%clk 0:00:54]} 22. Ne6 {[%clk 0:01:01]}  b4 {[%clk 0:00:54]} 23. Ne2 {[%clk 0:00:55]}  Qb7 {[%clk 0:00:31]} 24. Rxc4 {[%clk 0:00:46]}  Rxc4 {[%clk 0:00:31]} 25. N2f4 {[%clk 0:00:47]}  Qc8 {[%clk 0:00:22]} 26. Nxg6 {[%clk 0:00:41]}  Qb7 {[%clk 0:00:13]} 27. Ngf4 {[%clk 0:00:27]}  Qc8 {[%clk 0:00:13]} 28. Rf2 {[%clk 0:00:26]}  Ne4 {[%clk 0:00:12]} 29. Qd3 {[%clk 0:00:26]}  Nxf2 {[%clk 0:00:13]} 30. Bxf2 {[%clk 0:00:24]}  Rc2 {[%clk 0:00:06]} 31. Qg6 {[%clk 0:00:20]}  Qc3 {[%clk 0:00:06]} 32. Qe8+ {[%clk 0:00:20]}  Kh7 {[%clk 0:00:06]} 33. Qxh5+ {[%clk 0:00:20]}  Kg8 {[%clk 0:00:06]} 34. Qe8+ {[%clk 0:00:20]}  Kh7 {[%clk 0:00:07]} 35. Ng5+ {[%clk 0:00:20]}  Kh6 {[%clk 0:00:06]} 36. Qg6# {[%clk 0:00:21]} 1-0


[Site "https://www.chess.com"]

[Event "Titled Tuesday Blitz April 12 Early 2022"]
[White "Csonka, Balazs"]
[Black "Aaditya Dhingra"]
[WhiteFideId "742910"]
[BlackFideId "25678191"]
[WhiteElo "2404"]
[BlackElo "1849"]
[Result "1/2-1/2"]
[Round "07"]
[TimeControl "180+1"]
[Date "2022.04.13"]
[WhiteClock "0:00:05"]
[BlackClock "0:00:06"]

1. Nf3 {[%clk 0:03:00]}  c5 {[%clk 0:02:54]} 2. e4 {[%clk 0:03:00]}  e6 {[%clk 0:02:53]} 3. d4 {[%clk 0:02:55]}  cxd4 {[%clk 0:02:53]} 4. Nxd4 {[%clk 0:02:56]}  a6 {[%clk 0:02:54]} 5. Bd3 {[%clk 0:02:52]}  Bc5 {[%clk 0:02:53]} 6. Nb3 {[%clk 0:02:51]}  Be7 {[%clk 0:02:53]} 7. Qg4 {[%clk 0:02:48]}  g6 {[%clk 0:02:53]} 8. Qe2 {[%clk 0:02:46]}  d6 {[%clk 0:02:53]} 9. f4 {[%clk 0:02:43]}  Nc6 {[%clk 0:02:53]} 10. Nc3 {[%clk 0:02:42]}  Nf6 {[%clk 0:02:53]} 11. Bd2 {[%clk 0:02:15]}  Qc7 {[%clk 0:02:51]} 12. O-O-O {[%clk 0:02:15]}  b5 {[%clk 0:02:51]} 13. a3 {[%clk 0:02:03]}  b4 {[%clk 0:02:43]} 14. axb4 {[%clk 0:02:04]}  Nxb4 {[%clk 0:02:43]} 15. Kb1 {[%clk 0:01:54]}  Bb7 {[%clk 0:02:40]} 16. Nb5 {[%clk 0:01:44]}  axb5 {[%clk 0:02:33]} 17. Bxb4 {[%clk 0:01:44]}  O-O {[%clk 0:02:18]} 18. Nd4 {[%clk 0:01:41]}  Ra4 {[%clk 0:01:52]} 19. c3 {[%clk 0:01:32]}  Rfa8 {[%clk 0:01:45]} 20. Nxb5 {[%clk 0:01:30]}  Qb6 {[%clk 0:01:40]} 21. Na3 {[%clk 0:01:09]}  Bf8 {[%clk 0:01:05]} 22. Kc1 {[%clk 0:00:30]}  d5 {[%clk 0:01:04]} 23. Bxf8 {[%clk 0:00:29]}  Kxf8 {[%clk 0:01:04]} 24. e5 {[%clk 0:00:28]}  Nd7 {[%clk 0:01:01]} 25. h4 {[%clk 0:00:23]}  Rxf4 {[%clk 0:00:32]} 26. Rdf1 {[%clk 0:00:17]}  Raa4 {[%clk 0:00:27]} 27. h5 {[%clk 0:00:16]}  Qc7 {[%clk 0:00:19]} 28. hxg6 {[%clk 0:00:15]}  hxg6 {[%clk 0:00:19]} 29. Rxf4 {[%clk 0:00:13]}  Rxf4 {[%clk 0:00:18]} 30. g3 {[%clk 0:00:13]}  Ra4 {[%clk 0:00:15]} 31. Bxg6 {[%clk 0:00:13]}  Nxe5 {[%clk 0:00:12]} 32. Bc2 {[%clk 0:00:11]}  Rxa3 {[%clk 0:00:12]} 33. bxa3 {[%clk 0:00:12]}  Qxc3 {[%clk 0:00:12]} 34. Qd2 {[%clk 0:00:04]}  Qa1+ {[%clk 0:00:11]} 35. Bb1 {[%clk 0:00:04]}  Nc4 {[%clk 0:00:10]} 36. Qb4+ {[%clk 0:00:04]}  Kg7 {[%clk 0:00:10]} 37. Qxb7 {[%clk 0:00:03]}  Qxa3+ {[%clk 0:00:08]} 38. Kc2 {[%clk 0:00:04]}  Ne3+ {[%clk 0:00:06]} 39. Kd2 {[%clk 0:00:03]}  Nc4+ {[%clk 0:00:06]} 40. Kc2 {[%clk 0:00:04]}  Ne3+ {[%clk 0:00:05]} 41. Kd2 {[%clk 0:00:05]}  Nc4+ {[%clk 0:00:06]} 42. Kc2 {[%clk 0:00:05]} 1/2-1/2


[Site "https://www.chess.com"]

[Event "Titled Tuesday Blitz April 12 Early 2022"]
[White "De Arruda, Leandro Formes"]
[Black "Bowden, Karl"]
[WhiteFideId "22722009"]
[BlackFideId "400548"]
[WhiteElo "1852"]
[BlackElo "2350"]
[Result "1-0"]
[Round "07"]
[TimeControl "180+1"]
[Date "2022.04.13"]
[WhiteClock "0:00:34"]
[BlackClock "0:00:12"]

1. d4 {[%clk 0:03:00]}  Nf6 {[%clk 0:02:59]} 2. Nf3 {[%clk 0:03:00]}  g6 {[%clk 0:02:59]} 3. g3 {[%clk 0:03:00]}  Bg7 {[%clk 0:02:59]} 4. Bg2 {[%clk 0:03:01]}  O-O {[%clk 0:03:00]} 5. O-O {[%clk 0:03:02]}  Nc6 {[%clk 0:02:59]} 6. d5 {[%clk 0:03:01]}  Na5 {[%clk 0:02:58]} 7. Re1 {[%clk 0:02:52]}  c5 {[%clk 0:02:56]} 8. e4 {[%clk 0:02:51]}  d6 {[%clk 0:02:56]} 9. Nc3 {[%clk 0:02:47]}  Rb8 {[%clk 0:02:52]} 10. Qe2 {[%clk 0:02:44]}  a6 {[%clk 0:02:45]} 11. e5 {[%clk 0:02:34]}  Ng4 {[%clk 0:02:20]} 12. Bf4 {[%clk 0:02:26]}  b5 {[%clk 0:02:13]} 13. h3 {[%clk 0:02:19]}  Nxe5 {[%clk 0:01:38]} 14. Nxe5 {[%clk 0:02:18]}  dxe5 {[%clk 0:01:38]} 15. Bxe5 {[%clk 0:02:19]}  Bxe5 {[%clk 0:01:33]} 16. Qxe5 {[%clk 0:02:20]}  Bf5 {[%clk 0:01:33]} 17. b3 {[%clk 0:02:11]}  Re8 {[%clk 0:01:25]} 18. Qe3 {[%clk 0:01:43]}  Nb7 {[%clk 0:01:09]} 19. Rac1 {[%clk 0:01:40]}  Kg7 {[%clk 0:01:03]} 20. Ne4 {[%clk 0:01:39]}  Bxe4 {[%clk 0:01:03]} 21. Qxe4 {[%clk 0:01:37]}  Nd6 {[%clk 0:01:02]} 22. Qe5+ {[%clk 0:01:36]}  Kg8 {[%clk 0:01:02]} 23. Qe3 {[%clk 0:01:34]}  c4 {[%clk 0:01:02]} 24. Qa7 {[%clk 0:01:27]}  Ra8 {[%clk 0:00:57]} 25. Qc5 {[%clk 0:01:25]}  Qc8 {[%clk 0:00:54]} 26. Qd4 {[%clk 0:01:20]}  Qd7 {[%clk 0:00:49]} 27. h4 {[%clk 0:01:14]}  Rac8 {[%clk 0:00:47]} 28. h5 {[%clk 0:01:11]}  cxb3 {[%clk 0:00:26]} 29. axb3 {[%clk 0:01:10]}  Nf5 {[%clk 0:00:20]} 30. Qe5 {[%clk 0:01:01]}  Qd6 {[%clk 0:00:20]} 31. Qe4 {[%clk 0:00:58]}  Qf6 {[%clk 0:00:19]} 32. c4 {[%clk 0:00:50]}  bxc4 {[%clk 0:00:18]} 33. bxc4 {[%clk 0:00:51]}  Rc5 {[%clk 0:00:16]} 34. Bh3 {[%clk 0:00:39]}  Nd6 {[%clk 0:00:16]} 35. Qe2 {[%clk 0:00:39]}  Kg7 {[%clk 0:00:12]} 36. h6+ {[%clk 0:00:34]}  Kxh6 {[%clk 0:00:11]} 37. Qe3+ {[%clk 0:00:34]}  Qg5 {[%clk 0:00:12]} 38. Qxc5 {[%clk 0:00:34]} 1-0


[Site "https://www.chess.com"]

[Event "Titled Tuesday Blitz April 12 Early 2022"]
[White "Dushyant Sharma"]
[Black "Lauridsen, Jesper Morch"]
[WhiteFideId "25065130"]
[BlackFideId "1401890"]
[WhiteElo "2105"]
[BlackElo "2319"]
[Result "1-0"]
[Round "07"]
[TimeControl "180+1"]
[Date "2022.04.13"]
[WhiteClock "0:00:13"]
[BlackClock "0:00:02"]

1. e4 {[%clk 0:02:51]}  c5 {[%clk 0:02:59]} 2. Nf3 {[%clk 0:02:49]}  e6 {[%clk 0:02:59]} 3. d4 {[%clk 0:02:50]}  cxd4 {[%clk 0:02:59]} 4. Nxd4 {[%clk 0:02:51]}  Nc6 {[%clk 0:03:00]} 5. Nc3 {[%clk 0:02:46]}  Qc7 {[%clk 0:02:59]} 6. f4 {[%clk 0:02:46]}  Nxd4 {[%clk 0:02:49]} 7. Qxd4 {[%clk 0:01:52]}  b6 {[%clk 0:02:46]} 8. Qd1 {[%clk 0:01:52]}  Bb7 {[%clk 0:02:37]} 9. Bd3 {[%clk 0:01:53]}  Bb4 {[%clk 0:02:36]} 10. O-O {[%clk 0:01:53]}  Bxc3 {[%clk 0:02:36]} 11. bxc3 {[%clk 0:01:54]}  Qxc3 {[%clk 0:02:34]} 12. Rb1 {[%clk 0:01:51]}  Ne7 {[%clk 0:02:32]} 13. Bb2 {[%clk 0:01:52]}  Qc5+ {[%clk 0:02:31]} 14. Kh1 {[%clk 0:01:52]}  O-O {[%clk 0:02:30]} 15. Qg4 {[%clk 0:01:51]}  f6 {[%clk 0:02:30]} 16. Rf3 {[%clk 0:01:44]}  Rf7 {[%clk 0:02:30]} 17. Rg3 {[%clk 0:01:43]}  Kh8 {[%clk 0:02:06]} 18. Qh4 {[%clk 0:01:30]}  f5 {[%clk 0:01:30]} 19. Rh3 {[%clk 0:01:08]}  Kg8 {[%clk 0:01:02]} 20. Qxh7+ {[%clk 0:01:04]}  Kf8 {[%clk 0:01:03]} 21. Rg3 {[%clk 0:00:40]}  Qf2 {[%clk 0:00:25]} 22. Bxg7+ {[%clk 0:00:37]}  Ke8 {[%clk 0:00:12]} 23. Qh8+ {[%clk 0:00:37]}  Ng8 {[%clk 0:00:13]} 24. Qxg8+ {[%clk 0:00:37]}  Ke7 {[%clk 0:00:13]} 25. Qh7 {[%clk 0:00:25]}  fxe4 {[%clk 0:00:14]} 26. Bxe4 {[%clk 0:00:24]}  Rg8 {[%clk 0:00:10]} 27. Bxb7 {[%clk 0:00:17]}  Qxf4 {[%clk 0:00:10]} 28. Rf3 {[%clk 0:00:16]}  Qc4 {[%clk 0:00:02]} 29. Rxf7+ {[%clk 0:00:15]}  Kxf7 {[%clk 0:00:03]} 30. Be5+ {[%clk 0:00:13]}  Kf8 {[%clk 0:00:02]} 31. Bd6+ {[%clk 0:00:13]} 1-0


[Site "https://www.chess.com"]

[Event "Titled Tuesday Blitz April 12 Early 2022"]
[White "Dwilewicz, Katarzyna"]
[Black "Sztokbant, Bernardo Vainzoff"]
[WhiteFideId "1148486"]
[BlackFideId "2115956"]
[WhiteElo "1907"]
[BlackElo "2225"]
[Result "0-1"]
[Round "07"]
[TimeControl "180+1"]
[Date "2022.04.13"]
[WhiteClock "0:00:55"]
[BlackClock "0:00:51"]

1. e4 {[%clk 0:03:00]}  c5 {[%clk 0:02:59]} 2. Nf3 {[%clk 0:03:01]}  d6 {[%clk 0:03:00]} 3. d4 {[%clk 0:03:01]}  cxd4 {[%clk 0:03:01]} 4. Nxd4 {[%clk 0:03:01]}  Nf6 {[%clk 0:03:01]} 5. Nc3 {[%clk 0:03:01]}  e6 {[%clk 0:03:01]} 6. g3 {[%clk 0:03:00]}  Be7 {[%clk 0:03:01]} 7. Bg2 {[%clk 0:03:00]}  O-O {[%clk 0:03:00]} 8. a4 {[%clk 0:03:01]}  a6 {[%clk 0:02:58]} 9. O-O {[%clk 0:03:01]}  Nc6 {[%clk 0:02:58]} 10. Nxc6 {[%clk 0:02:59]}  bxc6 {[%clk 0:02:59]} 11. e5 {[%clk 0:02:59]}  dxe5 {[%clk 0:02:59]} 12. Bxc6 {[%clk 0:02:54]}  Rb8 {[%clk 0:03:00]} 13. Bg2 {[%clk 0:02:45]}  Qc7 {[%clk 0:02:57]} 14. Qe2 {[%clk 0:02:39]}  h6 {[%clk 0:02:18]} 15. Re1 {[%clk 0:02:38]}  Nd7 {[%clk 0:02:13]} 16. Rb1 {[%clk 0:02:01]}  Bb7 {[%clk 0:02:10]} 17. Bxb7 {[%clk 0:01:54]}  Qxb7 {[%clk 0:02:07]} 18. b3 {[%clk 0:01:51]}  Rfc8 {[%clk 0:02:06]} 19. Bb2 {[%clk 0:01:51]}  Bb4 {[%clk 0:02:06]} 20. Ne4 {[%clk 0:01:46]}  Bxe1 {[%clk 0:02:01]} 21. Nd6 {[%clk 0:01:45]}  Qc7 {[%clk 0:01:27]} 22. Nxc8 {[%clk 0:01:43]}  Bxf2+ {[%clk 0:01:08]} 23. Kxf2 {[%clk 0:01:09]}  Rxc8 {[%clk 0:01:09]} 24. c4 {[%clk 0:01:02]}  Nf6 {[%clk 0:01:00]} 25. Kg1 {[%clk 0:01:01]}  Qb6+ {[%clk 0:00:56]} 26. Kg2 {[%clk 0:00:55]}  Qxb3 {[%clk 0:00:54]} 27. Qxe5 {[%clk 0:00:55]}  Qc2+ {[%clk 0:00:51]} 0-1


[Site "https://www.chess.com"]

[Event "Titled Tuesday Blitz April 12 Early 2022"]
[White "Efremova, Yulia"]
[Black "Winkels, Marcel"]
[WhiteFideId "14113953"]
[BlackFideId "1003887"]
[WhiteElo "2107"]
[BlackElo "1900"]
[Result "1-0"]
[Round "07"]
[TimeControl "180+1"]
[Date "2022.04.13"]
[WhiteClock "0:01:10"]
[BlackClock "0:00:39"]

1. d4 {[%clk 0:03:00]}  Nf6 {[%clk 0:02:58]} 2. Bf4 {[%clk 0:02:56]}  d5 {[%clk 0:02:56]} 3. e3 {[%clk 0:02:55]}  Bf5 {[%clk 0:02:56]} 4. Nf3 {[%clk 0:02:55]}  e6 {[%clk 0:02:56]} 5. Bd3 {[%clk 0:02:51]}  Bxd3 {[%clk 0:02:55]} 6. cxd3 {[%clk 0:02:51]}  Nbd7 {[%clk 0:02:56]} 7. Nbd2 {[%clk 0:02:49]}  Bd6 {[%clk 0:02:55]} 8. Ne5 {[%clk 0:02:49]}  O-O {[%clk 0:02:51]} 9. Qf3 {[%clk 0:02:46]}  Be7 {[%clk 0:02:40]} 10. g4 {[%clk 0:02:40]}  Nxe5 {[%clk 0:02:38]} 11. dxe5 {[%clk 0:02:38]}  Nd7 {[%clk 0:02:37]} 12. g5 {[%clk 0:02:28]}  c5 {[%clk 0:02:33]} 13. h4 {[%clk 0:02:27]}  Qb6 {[%clk 0:02:32]} 14. h5 {[%clk 0:02:14]}  Qxb2 {[%clk 0:02:14]} 15. Rb1 {[%clk 0:02:14]}  Qc3 {[%clk 0:02:14]} 16. Rb3 {[%clk 0:02:08]}  Qa1+ {[%clk 0:02:09]} 17. Ke2 {[%clk 0:02:07]}  Qxa2 {[%clk 0:02:08]} 18. g6 {[%clk 0:01:59]}  fxg6 {[%clk 0:02:05]} 19. hxg6 {[%clk 0:01:57]}  h6 {[%clk 0:02:04]} 20. Qg4 {[%clk 0:01:56]}  Qa6 {[%clk 0:01:42]} 21. Bxh6 {[%clk 0:01:49]}  c4 {[%clk 0:01:29]} 22. dxc4 {[%clk 0:01:35]}  dxc4 {[%clk 0:01:21]} 23. Rc3 {[%clk 0:01:34]}  Bb4 {[%clk 0:01:11]} 24. Bxg7 {[%clk 0:01:34]}  Kxg7 {[%clk 0:01:02]} 25. Rh7+ {[%clk 0:01:32]}  Kg8 {[%clk 0:01:00]} 26. Rh8+ {[%clk 0:01:31]}  Kg7 {[%clk 0:00:58]} 27. Rh7+ {[%clk 0:01:23]}  Kg8 {[%clk 0:00:58]} 28. Qh5 {[%clk 0:01:19]}  Rxf2+ {[%clk 0:00:47]} 29. Kxf2 {[%clk 0:01:15]}  Nf8 {[%clk 0:00:39]} 30. Rh8+ {[%clk 0:01:10]}  Kg7 {[%clk 0:00:39]} 31. Qh6# {[%clk 0:01:10]} 1-0


[Site "https://www.chess.com"]

[Event "Titled Tuesday Blitz April 12 Early 2022"]
[White "Estrada Nieto, Julian"]
[Black "Kejzar, Petra"]
[WhiteFideId "5101018"]
[BlackFideId "14610213"]
[WhiteElo "2252"]
[BlackElo "2003"]
[Result "1-0"]
[Round "07"]
[TimeControl "180+1"]
[Date "2022.04.13"]
[WhiteClock "0:00:15"]
[BlackClock "0:00:01"]

1. e4 {[%clk 0:03:00]}  c5 {[%clk 0:02:59]} 2. Nf3 {[%clk 0:03:00]}  e6 {[%clk 0:02:59]} 3. c3 {[%clk 0:03:00]}  Nf6 {[%clk 0:02:57]} 4. e5 {[%clk 0:03:00]}  Nd5 {[%clk 0:02:58]} 5. Bc4 {[%clk 0:03:00]}  d6 {[%clk 0:02:52]} 6. d4 {[%clk 0:03:00]}  cxd4 {[%clk 0:02:52]} 7. cxd4 {[%clk 0:03:00]}  Be7 {[%clk 0:02:51]} 8. O-O {[%clk 0:02:59]}  O-O {[%clk 0:02:52]} 9. Qe2 {[%clk 0:03:00]}  b6 {[%clk 0:02:42]} 10. Bxd5 {[%clk 0:02:49]}  exd5 {[%clk 0:02:42]} 11. Rd1 {[%clk 0:02:46]}  Nd7 {[%clk 0:02:36]} 12. Nc3 {[%clk 0:02:45]}  Bb7 {[%clk 0:02:35]} 13. Bf4 {[%clk 0:02:42]}  Re8 {[%clk 0:02:26]} 14. Qd2 {[%clk 0:02:41]}  Nf8 {[%clk 0:02:13]} 15. Nb5 {[%clk 0:02:32]}  Ng6 {[%clk 0:02:09]} 16. exd6 {[%clk 0:02:27]}  Nxf4 {[%clk 0:01:43]} 17. Qxf4 {[%clk 0:02:19]}  Qd7 {[%clk 0:01:20]} 18. dxe7 {[%clk 0:02:13]}  Qxb5 {[%clk 0:01:20]} 19. Qc7 {[%clk 0:01:59]}  Qc6 {[%clk 0:01:11]} 20. Rac1 {[%clk 0:01:51]}  Qxc7 {[%clk 0:01:10]} 21. Rxc7 {[%clk 0:01:50]}  Bc8 {[%clk 0:01:05]} 22. h3 {[%clk 0:01:39]}  f6 {[%clk 0:01:02]} 23. Re1 {[%clk 0:01:37]}  Kf7 {[%clk 0:00:59]} 24. Nd2 {[%clk 0:01:31]}  Be6 {[%clk 0:00:57]} 25. f4 {[%clk 0:01:22]}  g6 {[%clk 0:00:55]} 26. Rec1 {[%clk 0:01:17]}  Rac8 {[%clk 0:00:43]} 27. Kf2 {[%clk 0:01:15]}  Rxc7 {[%clk 0:00:37]} 28. Rxc7 {[%clk 0:01:14]}  Rxe7 {[%clk 0:00:38]} 29. Rxe7+ {[%clk 0:01:10]}  Kxe7 {[%clk 0:00:39]} 30. Ke3 {[%clk 0:01:08]}  Kd6 {[%clk 0:00:39]} 31. Nb1 {[%clk 0:01:01]}  Bf5 {[%clk 0:00:37]} 32. Nc3 {[%clk 0:01:01]}  h5 {[%clk 0:00:35]} 33. Nb5+ {[%clk 0:01:00]}  Ke7 {[%clk 0:00:23]} 34. Nxa7 {[%clk 0:00:59]}  Bd7 {[%clk 0:00:22]} 35. b3 {[%clk 0:00:44]}  Kd6 {[%clk 0:00:22]} 36. a4 {[%clk 0:00:42]}  Kc7 {[%clk 0:00:16]} 37. Kd3 {[%clk 0:00:39]}  Kb7 {[%clk 0:00:14]} 38. Nb5 {[%clk 0:00:39]}  Ka6 {[%clk 0:00:12]} 39. Nc3 {[%clk 0:00:35]}  Bf5+ {[%clk 0:00:10]} 40. Kd2 {[%clk 0:00:34]}  Be6 {[%clk 0:00:09]} 41. b4 {[%clk 0:00:30]}  Bd7 {[%clk 0:00:07]} 42. Ke3 {[%clk 0:00:28]}  Be6 {[%clk 0:00:06]} 43. Kf3 {[%clk 0:00:26]}  Kb7 {[%clk 0:00:04]} 44. g4 {[%clk 0:00:25]}  hxg4+ {[%clk 0:00:02]} 45. hxg4 {[%clk 0:00:26]}  g5 {[%clk 0:00:02]} 46. Ne2 {[%clk 0:00:18]}  Bf7 {[%clk 0:00:02]} 47. Ng3 {[%clk 0:00:16]}  Kc6 {[%clk 0:00:01]} 48. Nf5 {[%clk 0:00:15]} 1-0


[Site "https://www.chess.com"]